Cogmind - Beta 16 @@@ ROGUE MODE // 2026.02.05 @ 17:05:22 Player: Skergy Result: Destroyed by DZ-7Q8(R) with Subdweller Shrapnel Launcher Performance ------------- Evolutions (0) 0 Regions Visited (2) 400 Robots Destroyed (26) 130 Value Destroyed (666) 666 Prototype IDs (0) 0 Alien Tech Used (0) 0 Bonus (0) 0 TOTAL SCORE: 1196 Bonus ------- None Cogmind --------- Core Integrity 0/250 Matter 300/300 Energy 200/200 System Corruption 0% Temperature Cool (0) Movement Rolling (120) Ox1 Location -10/Subcaves Parts ------- > --- POWER (1) -------- Subdweller Power Source > --- PROPULSION (2) --- Aluminum Leg Subdweller Monowheel > --- UTILITY (2) ------ Large Storage Unit > --- WEAPON (2) ------- Medium Laser Makeshift Shrapnel Gun > --- INVENTORY (15) --- Subdweller Power Source Aluminum Leg Aluminum Leg Structural Scanner Signal Interpreter Assault Rifle Light Cannon Grenade Launcher Grenade Launcher Grenade Launcher Grenade Launcher Datajack Datajack Mining Laser Flamer Peak State ------------ > --- POWER ------------ Subdweller Power Source > --- PROPULSION ------- Aluminum Leg Subdweller Monowheel > --- UTILITY ---------- Large Storage Unit Improved Terrain Scanner > --- WEAPON ----------- Medium Laser Makeshift Shrapnel Gun > --- INVENTORY -------- Aluminum Leg Aluminum Leg Aluminum Leg Structural Scanner Signal Interpreter Assault Rifle Light Cannon Grenade Launcher Grenade Launcher Grenade Launcher Grenade Launcher Datajack Datajack Mining Laser Flamer [Rating: 15] Favorites ----------- Power Light Ion Engine Engine Light Ion Engine Propulsion Light Treads Treads Light Treads Leg Aluminum Leg Wheel Subdweller Monowheel Utility Large Storage Unit Device Seismic Detector Storage Large Storage Unit Weapon Medium Laser Energy Gun Medium Laser Ballistic Gun Makeshift Shrapnel Gun Special Weapon Mining Laser Build | -11 -10 -10 ------- Run | Yrd Mat Sub Slots Evolved . | . . . Power . | . . . Propulsion . | . . . Utility . | . . . Weapon . | . . . Parts Attached 18 | 7 6 5 Power 3 | 1 1 1 Engine 3 | 1 1 1 Core . | . . . Reactor . | . . . Propulsion 5 | 2 . 3 Treads 2 | 2 . . Leg 2 | . . 2 Wheel 1 | . . 1 Hover . | . . . Flight . | . . . Utility 5 | 1 4 . Device 3 | . 3 . Storage 2 | 1 1 . Processor . | . . . Hackware . | . . . Protection . | . . . Artifact . | . . . Weapon 5 | 3 1 1 Energy Gun 2 | 2 . . Energy Cannon . | . . . Ballistic Gun 2 | 1 . 1 Ballistic Cannon . | . . . Launcher . | . . . Special Weapon 1 | . 1 . Impact Weapon . | . . . Slashing Weapon . | . . . Piercing Weapon . | . . . Special Melee Weapon . | . . . Unidentified Prototypes . | . . . Parts Lost 7 | . 2 5 Power 2 | . 1 1 Propulsion 3 | . . 3 Utility 2 | . 1 1 Weapon . | . . . Highest Loss Streak 3 | . 1 3 To Critical Strikes 1 | . . 1 Average Backups 11 | 3 10 14 Power . | . . . Propulsion 2 | 1 2 3 Utility 1 | . 2 2 Weapon 4 | 1 3 7 Tool/Special . | . . . Unused Backups 11 | . . 11 Power . | . . . Propulsion 2 | . . 2 Utility 1 | . . 1 Weapon 6 | . . 6 Tool/Special 2 | . . 2 Average Slot Usage (%) 97 | . 99 92 Engine 12 | . 13 9 Treads 23 | . 28 11 Leg 1 | . . 7 Wheel 2 | . . 7 Device 13 | . 13 13 Storage 14 | . 14 14 Energy Gun 25 | . 27 19 Ballistic Gun 2 | . . 8 Peak Build Rating 15 | 6 10 15 Average Rating 9 | 4 8 12 On Entrance 5 | . 6 10 Avg Prop Armor Cover (%) 7 | . . 7 Naked Turns . | . . . Heaviest Build 30 | 11 27 30 Greatest Support 40 | 40 40 40 Greatest Overweight (x) 8 | . . 8 Average Overweight (x) . | . . . Largest Inventory Capacity 15 | 8 15 15 Average Capacity 13 | 7 14 15 Most Carried 15 | 6 15 15 Average Carried 11 | 3 10 14 Final Capacity 15 | 8 15 15 Final Carried 15 | 6 15 15 Class Distribution -------------------- 100% | Mutant Dominant Class ---------------- Mutant | -10/Materials Mutant | -10/Subcaves Resources | -11 -10 -10 ----------- Run | Yrd Mat Sub Matter Collected 493 | 285 75 133 Remotely . | . . . Salvage Created 809 | 146 518 145 Parts 54 | 5 35 14 Haulers Intercepted . | . . . Recyclers Shooed . | . . . Parts Field Recycled . | . . . Retrieved Matter . | . . . Parts Self-Destructed 5 | . . 5 Prevented . | . . . Parts Restored . | . . . Kills | -11 -10 -10 ------- Run | Yrd Mat Sub Combat Hostiles Destroyed 18 | . 13 5 Guns 18 | . 13 5 Classes Destroyed 7 | 2 4 1 Worker 2 | . 2 . Tunneler 2 | 2 . . Recycler 1 | 1 . . Watcher 3 | . 3 . Swarmer 3 | . 3 . Grunt 10 | . 10 . Subdweller 5 | . . 5 Best Kill Streak 7 | 3 7 2 Combat Bots Only 5 | . 5 2 Max Kills in Single Turn 2 | 1 2 1 Gunslinging . | . . . Exploded . | . . . Melee . | . . . Uniques/NPCs Destroyed . | . . . Combat | -11 -10 -10 -------- Run | Yrd Mat Sub Hostile Shots Fired 79 | . 61 18 Missed 16 | . 11 5 Hits 63 | . 50 13 Projectile 63 | . 50 13 AOE 1 | . . 1 Critical Strikes 2 | . 1 1 Damage Taken 987 | . 568 419 Core 291 | . 153 138 Absorbed by Shields . | . . . Core Remaining (%) 100 | 100 . . Volleys Fired 87 | 10 59 18 Largest 2 | 2 2 2 Hottest 100 | 90 100 100 Shots Fired 158 | 20 107 31 Gun 154 | 20 104 30 Cannon . | . . . Launcher . | . . . Special 4 | . 3 1 Kinetic 22 | 5 . 17 Thermal 136 | 15 107 14 Explosive . | . . . Electromagnetic . | . . . Robot Hit Streak 15 | 4 11 15 Robot Miss Streak 5 | 3 5 4 Penetration Max . | . . . Secondary Targets 1 | . 1 . Max Gunslinging Chain 1 | . 1 . Shots Hit Robots 88 | 12 53 23 Core Hits 47 | 4 31 12 Critical Kills . | . . . Critical Parts Destroyed . | . . . Critical Strikes 4 | . 4 . Burn 4 | . 4 . Melee Attacks . | . . . Impact . | . . . Slashing . | . . . Piercing . | . . . Sneak Attacks . | . . . Combat Hostiles . | . . . Follow-up Attacks . | . . . Damage Inflicted 1258 | 151 667 440 Guns 1258 | 151 667 440 Cannons . | . . . Explosions . | . . . Melee . | . . . Ramming . | . . . Kinetic 394 | 67 . 327 Thermal 864 | 84 667 113 Explosive . | . . . Electromagnetic . | . . . Impact . | . . . Slashing . | . . . Piercing . | . . . Highest Corruption . | . . . Average Corruption . | . . . Corruption Purged . | . . . Corruption Blocked . | . . . Overload Shots . | . . . Overflow Damage . | . . . Projectiles . | . . . Explosions . | . . . Melee . | . . . Knockbacks . | . . . Impact . | . . . Kinetic . | . . . Secondary . | . . . Self-Inflicted Damage . | . . . Shots . | . . . Rammed . | . . . Targets Rammed . | . . . Kicked . | . . . Crushed . | . . . Highest Temperature 336 | 150 336 . Average Temperature 87 | 54 92 . Received Heat Transfer 360 | . 288 72 Effects 2 | . 2 . Interference 2 | . 2 . Siege Activations . | . . . Martial Activations . | . . . Shielding Activations . | . . . Robots Disrupted . | . . . Combat Hostiles . | . . . Robots Corrupted . | . . . Combat Hostiles . | . . . Parts Fried . | . . . Impact Corruptions . | . . . Robots Melted . | . . . Combat Hostiles . | . . . Parts Melted 9 | 1 7 1 Heat Transferred 2601 | 235 2033 333 Parts Sabotaged . | . . . Parts Stolen . | . . . Parts Stripped . | . . . Power Chain Reactions . | . . . Alert | -11 -10 -10 ------- Run | Yrd Mat Sub Maximum Alert Level 1 | . 1 . Low Security (%) 97 | 100 97 . Level 1 2 | . 2 . Level 2 . | . . . Level 3 . | . . . Level 4 . | . . . Level 5 . | . . . High Security . | . . . Max Security . | . . . Peak Influence 204 | 5 204 . Initial . | . . . Average 75 | 1 84 . Influence Increases 463 | 15 448 . Destroy 0b10 Robot/C 260 | . 260 . Destroy 0b10 Robot/NC 40 | 15 25 . Destroy Leader 66 | . 66 . Successful Hack 50 | . 50 . Destroy Structure 2 | . 2 . Lose Combat Pursuer 45 | . 45 . Influence Decreases 463 | 15 287 161 Entered New Map 78 | . . 78 Time Decay 365 | 15 267 83 Lost Part 20 | . 20 . Squads Dispatched 3 | . 3 . Investigation 2 | . 2 . Extermination . | . . . Reinforcement 1 | . 1 . Assault . | . . . Garrison . | . . . Intercept . | . . . Searches Triggered . | . . . Construction Impeded . | . . . Haulers Reinforced . | . . . Active Scanning Responses . | . . . Cargo Convoy Interrupts . | . . . Stealth | -11 -10 -10 --------- Run | Yrd Mat Sub Distress Signals 2 | . 2 . Communications Jammed . | . . . Distress Signals . | . . . Times Spotted 33 | . 27 6 Peak Tracking Total 5 | . 5 2 Tactical Retreats 2 | . 2 . Traps | -11 -10 -10 ------- Run | Yrd Mat Sub Traps Triggered 4 | . 2 2 Indirectly . | . . . Trap Hack Attempts . | . . . Triggered . | . . . Disarmed . | . . . Reprogrammed . | . . . Reused . | . . . Traps Extracted . | . . . Installed . | . . . Triggered . | . . . Machines | -11 -10 -10 ---------- Run | Yrd Mat Sub Machines Disabled . | . . . Max in Single Turn . | . . . Machines Repaired . | . . . Machines Dismantled . | . . . Machines Sabotaged . | . . . Overloaded Fab Kills . | . . . Hacking | -11 -10 -10 --------- Run | Yrd Mat Sub Machines Accessed 6 | . 6 . Terminals 5 | . 5 . Fabricators . | . . . Repair Stations . | . . . Recycling Units 1 | . 1 . Scanalyzers . | . . . Garrison Access . | . . . Total Hacks 22 | . 22 . Successful 14 | . 14 . Failed 8 | . 8 . Catastrophic 2 | . 2 . Database Lockouts . | . . . Manual 19 | . 19 . Terminals 19 | . 19 . Fabricators . | . . . Repair Stations . | . . . Recycling Units 3 | . 3 . Scanalyzers . | . . . Garrison Access . | . . . Terminal Hacks 1 | . 1 . Zone Layout 1 | . 1 . Fabricator Hacks . | . . . Repair Station Hacks . | . . . Recycling Unit Hacks . | . . . Scanalyzer . | . . . Garrison Access Hacks . | . . . Unauthorized Hacks 13 | . 13 . Terminals 10 | . 10 . Track 2 | . 2 . Assimilate 1 | . 1 . Botnet 4 | . 4 . Disrupt 2 | . 2 . Operators 1 | . 1 . Fabricators . | . . . Repair Stations . | . . . Recycling Units 3 | . 3 . Reject 1 | . 1 . Recyclers 1 | . 1 . Mask 1 | . 1 . Scanalyzers . | . . . Garrison Access . | . . . Data Cores Recovered . | . . . Used . | . . . Hacking Detections 6 | . 6 . Full Trace Events . | . . . Feedback Events . | . . . Feedback Blocked . | . . . Robot Schematics Acquired . | . . . Robots Built . | . . . Authchips . | . . . Time . | . . . Total Robot Build Rating . | . . . Part Schematics Acquired . | . . . Parts Built . | . . . Authchips . | . . . Time . | . . . Total Part Build Rating . | . . . Part Studies Acquired . | . . . Parts Repaired . | . . . Time . | . . . Parts Recycled . | . . . Recycled Matter . | . . . Retrieved Matter . | . . . Retrieved Components . | . . . Parts Scanalyzed . | . . . Part Schematics Acquired . | . . . Parts Damaged . | . . . Bothacking | -11 -10 -10 ------------ Run | Yrd Mat Sub Used RIF Installer . | . . . Robots Hacked . | . . . Non-combat . | . . . Combat . | . . . Robot Hacks Applied . | . . . Relay Couplers Released . | . . . Fabnet Peak Effective % . | . . . Robots Rewired . | . . . Allies Hacked . | . . . Hacks Repelled . | . . . Allies | -11 -10 -10 -------- Run | Yrd Mat Sub Total Allies . | . . . Largest Group . | . . . Highest-Rated Group . | . . . Highest-Rated Ally . | . . . Total Orders . | . . . Ally Attacks . | . . . Total Damage . | . . . Kills . | . . . Allies Corrupted . | . . . Allies Melted . | . . . Intel | -11 -10 -10 ------- Run | Yrd Mat Sub Active Infowar (turns) 1270 | . 1058 212 Terrain 391 | . 179 212 Structural 1 | . 1 . Seismic 878 | . 878 . Robot Analysis Total . | . . . Derelict Logs Recovered . | . . . Drone Launches . | . . . Drone Recoveries . | . . . Exploration | -11 -10 -10 ------------- Run | Yrd Mat Sub Turns Passed 1908 | 147 1282 479 Spaces Moved 726 | 64 432 230 Core 2 | 1 . 1 Treads 607 | 63 432 112 Legs 55 | . . 55 Wheels 62 | . . 62 Hover . | . . . Flight . | . . . Fastest Speed 50 | 50 160 120 Average Speed 164 | 158 160 174 Slowest Speed 450 | 160 160 450 Overloaded Moves . | . . . Propulsion Burnouts . | . . . Robots Hopped . | . . . Potential Cave-ins . | . . . Cave-ins Triggered . | . . . Exploration Rate (%) 30 | 5 71 16 Regions Visited 2 Branch Regions 1 Pre-discovered Areas . | . . . Known Exits Taken . | . . . Unknown Exits Taken 2 | 1 1 . Scrap Searched 4 | . . 4 Spaces Dug 3 | . 3 . Terrain Destroyed 3 | . 3 . Melee . | . . . Projectile 3 | . 3 . AOE . | . . . Terrain Rammed . | . . . Walls Destroyed . | . . . Machines Disabled . | . . . Actions | -11 -10 -10 --------- Run | Yrd Mat Sub Total 1267 | 87 909 271 Wait 411 | . 398 13 Move 724 | 63 431 230 Hop . | . . . Pick Up 20 | 7 11 2 Fast Attach 9 | 5 1 3 Attach 6 | 1 3 2 Detach 1 | . 1 . Swap 7 | 1 4 2 Drop 2 | . 1 1 Fire 87 | 10 59 18 Melee . | . . . Ram . | . . . Kick . | . . . Crush . | . . . Escape Stasis . | . . . Rewire . | . . . Trap . | . . . Miscellaneous . | . . . Route ------- -11/Scrapyard -10/Materials (discovered 4 exits: [*Mat x2] / [*Min] / [*Sub]) -10/Subcaves History --------- Turn | Location | Event 11 | -11/Scrapyard | Discovered new exit (range 14) 148 | -11/Scrapyard | Entered Materials 304 | -10/Materials | Build established: Mutant 693 | -10/Materials | Discovered new exit (range 12) 780 | -10/Materials | Discovered new exit (range 11) 990 | -10/Materials | Discovered new exit (range 16) 1196 | -10/Materials | Core integrity fell below 50% 1414 | -10/Materials | Discovered new exit (range 10) 1430 | -10/Materials | Entered Subcaves 1431 | -10/Subcaves | Approached by a straggling Scientist 1588 | -10/Subcaves | Shifting Twisted Machinery released Mak. Shrapnel Gun 1638 | -10/Subcaves | Core integrity fell below 20% 1662 | -10/Subcaves | Lost 3 parts (1p2n) 1664 | -10/Subcaves | Shifting Twisted Machinery released Flamer 1775 | -10/Subcaves | Disturbed a concealed Subdweller 1893 | -10/Subcaves | Disturbed a concealed Subdweller 1909 | -10/Subcaves | Disturbed a concealed Subdweller 1909 | -10/Subcaves | Destroyed by DZ-7Q8(R) with Subdweller Shrapnel Launcher Last Messages --------------- 01874_ 0J-QC7(R) destroyed. 01877_ Acquired 5 matter. 01893_ TC-2LP(R) angrily emerges from the Twisted Machinery. 01894_ TC-2LP(R): "UMO!" 01895_ Acquired 15 matter. 01897_ Acquired 8 matter. 01897_ Aluminum Leg destroyed. 01900_ TC-2LP(R) destroyed. 01904_ Acquired Sub. Power Source. 01905_ Acquired 20 matter. 01907_ Searching scrap... 01907_ Found Flamer. 01907_ Found Sub. Shrapnel Launcher. 01907_ Found 31 Matter. 01908_ Searching scrap... 01908_ Found Battle Cannon. 01908_ Found 37 Matter. 01909_ DZ-7Q8(R) angrily emerges from the Twisted Machinery. Map ----- +----------------------------------------------------+ | ?????????????????????????????????????????????????? | | ?????????????????????????????????????????????????? | | ?????????????????????????????????????????????????? | | ?????????????????????????????????????????????????? | | ?????????????????????????????????????????????????? | | ??????????????????????????????????#??????????????? | | ?????????????????????????????????????????????????? | | ?????????????????????????????????????????????????? | | ?????????????????????????????????????????????????? | | ?????????????????????????????????????????????????? | | ?????????????????????????????????????????????????? | | ?????????????????????????????????????????????????? | | ??????????????????????????????????????????????#??? | | ?????????????????????????????????????????????????? | | ??????????????????????????????????#######????????? | | ???????????????????????#???????#### ^ ##???????? | | ????????????????? ##???????????# ###?????? | | ????????????????????########??### # ### #?? | | ???????????????? ### ## #### ## #?? | | ???????????????? % # #? | | ???????????????? # # ## # | | ????????????????????# % ## #?##? ??? | | ????????????????????# ##### % ### ##???? ?? | | ????????????????????#=##<<$## ##?# ##???# #?? | | ????????????????????#]#